Cogmind - Beta 17.1 @@@ ROGUE MODE // 2026.09.13 @ 14:28:12 Player: Figgis Result: Destroyed by B-36 Bruiser with Hammer Performance ------------- Evolutions (0) 0 Regions Visited (4) 800 Robots Destroyed (35) 175 Value Destroyed (745) 745 Prototype IDs (24) 480 Alien Tech Used (0) 0 Bonus (332) 332 TOTAL SCORE: 2532 Bonus ------- Follower Combat Kills 50 Aligned with FarCom 300 Friendly Fire -18 Cogmind --------- Core Integrity 0/250 Matter 243/300 Energy 265/265 System Corruption 2% Temperature Cool (0) Movement Walking (120) Location -9/Mines Parts ------- > --- POWER (1) -------- Improved Ion Engine > --- PROPULSION (2) --- Aluminum Leg Carbon-fiber Leg > --- UTILITY (2) ------ Medium Storage Unit Utility Shielding > --- WEAPON (2) ------- Subdweller Machine Gun Improved Assault Rifle > --- INVENTORY (10) --- Light Nuclear Core Flying Fortress v7 Grenade Launcher Mining Claw Signal Generator Peak State ------------ > --- POWER ------------ Improved Ion Engine > --- PROPULSION ------- Aluminum Leg Carbon-fiber Leg > --- UTILITY ---------- Small Storage Unit Utility Shielding > --- WEAPON ----------- Subdweller Machine Gun Improved Assault Rifle > --- INVENTORY -------- Light Nuclear Core Flying Fortress v7 Grenade Launcher Mining Claw Signal Generator [Rating: 17] Favorites ----------- Power Improved Ion Engine Engine Improved Ion Engine Propulsion Light Treads Treads Light Treads Leg Aluminum Leg Utility Small Storage Unit Storage Small Storage Unit Protection Utility Shielding Weapon Improved Assault Rifle Ballistic Gun Improved Assault Rifle Build | -11 -10 -10 -10 -9 ------- Run | Yrd Mat Min Exi Min Slots Evolved . | . . . . . Power . | . . . . . Propulsion . | . . . . . Utility . | . . . . . Weapon . | . . . . . Parts Attached 19 | 3 10 2 4 . Power 3 | . 2 . 1 . Engine 3 | . 2 . 1 . Core . | . . . . . Reactor . | . . . . . Propulsion 6 | 1 2 2 1 . Treads 3 | 1 2 . . . Leg 3 | . . 2 1 . Wheel . | . . . . . Hover . | . . . . . Flight . | . . . . . Utility 3 | . 2 . 1 . Device . | . . . . . Storage 2 | . 1 . 1 . Processor . | . . . . . Hackware . | . . . . . Protection 1 | . 1 . . . Artifact . | . . . . . Weapon 7 | 2 4 . 1 . Energy Gun . | . . . . . Energy Cannon . | . . . . . Ballistic Gun 7 | 2 4 . 1 . Ballistic Cannon . | . . . . . Launcher . | . . . . . Special Weapon . | . . . . . Impact Weapon . | . . . . . Slashing Weapon . | . . . . . Piercing Weapon . | . . . . . Special Melee Weapon . | . . . . . Unidentified Prototypes 1 | . 1 . . . Parts Lost 3 | . . 3 . . Power . | . . . . . Propulsion 2 | . . 2 . . Utility . | . . . . . Weapon 1 | . . 1 . . Highest Loss Streak 2 | . . 2 . . To Critical Strikes . | . . . . . Average Backups 6 | 3 5 7 5 4 Power 2 | 1 1 2 1 1 Propulsion . | . . . . 1 Utility . | . . . . . Weapon 3 | 1 3 3 2 2 Tool/Special . | . . . . . Unused Backups 11 | . 4 2 1 4 Power 5 | . 2 1 1 1 Propulsion 1 | . . . . 1 Utility 1 | . 1 . . . Weapon 4 | . 1 1 . 2 Tool/Special . | . . . . . Average Slot Usage (%) 96 | . 92 98 100 100 Engine 13 | . 13 14 14 14 Treads 15 | . 27 10 . . Leg 12 | . . 16 28 28 Storage 13 | . 13 14 14 14 Protection 11 | . 8 14 14 14 Ballistic Gun 27 | . 27 27 28 28 Peak Build Rating 17 | 3 13 15 17 17 Average Rating 12 | 1 8 14 16 17 On Entrance 9 | . 3 13 15 17 Avg Prop Armor Cover (%) 22 | 20 23 . . . Naked Turns . | . . . . . Heaviest Build 25 | 3 19 19 25 . Greatest Support 40 | 3 40 40 25 . Greatest Overweight (x) 5 | . 5 . . . Average Overweight (x) . | . . . . . Largest Inventory Capacity 10 | 5 8 8 10 10 Average Capacity 7 | 5 7 8 8 10 Most Carried 8 | 5 8 8 8 8 Average Carried 7 | 3 5 7 7 8 Final Capacity 10 | 5 8 8 10 10 Final Carried 8 | 5 8 8 8 8 Class Distribution -------------------- 100% | Mutant Dominant Class ---------------- Mutant | -10/Materials Mutant | -10/Mines Mutant | -10/Exiles Mutant | -9/Mines Resources | -11 -10 -10 -10 -9 ----------- Run | Yrd Mat Min Exi Min Matter Collected 816 | 228 298 290 . . Remotely . | . . . . . Salvage Created 963 | . 578 385 . . Parts 68 | . 35 33 . . Haulers Intercepted 1 | . 1 . . . Recyclers Shooed . | . . . . . Parts Field Recycled . | . . . . . Retrieved Matter . | . . . . . Parts Self-Destructed . | . . . . . Prevented . | . . . . . Parts Restored . | . . . . . Kills | -11 -10 -10 -10 -9 ------- Run | Yrd Mat Min Exi Min Combat Hostiles Destroyed 30 | . 15 15 . . Guns 30 | . 15 15 . . Classes Destroyed 7 | . 7 . . . Worker 1 | . 1 . . . Builder 1 | . 1 . . . Hauler 1 | . 1 . . . Watcher 2 | . 2 . . . Swarmer 18 | . 9 9 . . Grunt 10 | . 4 6 . . Subdweller 2 | . 2 . . . Best Kill Streak 3 | . 3 3 . . Combat Bots Only 3 | . 3 3 . . Max Kills in Single Turn 2 | . 2 2 . . Gunslinging 1 | . 1 1 . . Exploded . | . . . . . Melee . | . . . . . Uniques/NPCs Destroyed . | . . . . . Combat | -11 -10 -10 -10 -9 -------- Run | Yrd Mat Min Exi Min Hostile Shots Fired 127 | . 65 61 . 1 Missed 25 | . 14 11 . . Hits 102 | . 51 50 . 1 Melee 1 | . . . . 1 Projectile 101 | . 51 50 . . Damage Taken 1071 | . 578 470 . 23 Core 252 | . 110 119 . 23 Absorbed by Shields . | . . . . . Redirected to Shielding 8 | . 4 4 . . Core Remaining (%) 100 | 100 . . . . Volleys Fired 75 | . 45 29 . 1 Largest 2 | . 2 2 . 2 Hottest 53 | . 46 46 . 53 Shots Fired 150 | . 90 58 . 2 Gun 150 | . 90 58 . 2 Cannon . | . . . . . Launcher . | . . . . . Special . | . . . . . Kinetic 150 | . 90 58 . 2 Thermal . | . . . . . Explosive . | . . . . . Electromagnetic . | . . . . . Robot Hit Streak 18 | . 15 18 . 1 Robot Miss Streak 5 | . 5 1 . 1 Penetration Max . | . . . . . Secondary Targets 5 | . 3 2 . . Max Gunslinging Chain 1 | . 1 1 . . Shots Hit Robots 104 | . 59 44 . 1 Core Hits 48 | . 28 20 . . Critical Kills 1 | . 1 . . . Critical Parts Destroyed 1 | . . 1 . . Critical Strikes 2 | . 1 1 . . Destroy 2 | . 1 1 . . Melee Attacks . | . . . . . Impact . | . . . . . Slashing . | . . . . . Piercing . | . . . . . Sneak Attacks . | . . . . . Combat Hostiles . | . . . . . Follow-up Attacks . | . . . . . Damage Inflicted 1664 | . 924 722 . 18 Guns 1506 | . 766 722 . 18 Cannons . | . . . . . Explosions 158 | . 158 . . . Melee . | . . . . . Ramming . | . . . . . Kinetic 1506 | . 766 722 . 18 Thermal . | . . . . . Explosive . | . . . . . Electromagnetic 158 | . 158 . . . Impact . | . . . . . Slashing . | . . . . . Piercing . | . . . . . Highest Corruption 2 | . 2 2 2 2 Average Corruption 2 | . 2 2 2 2 Corruption Purged . | . . . . . Corruption Blocked . | . . . . . Effects 25 | . 3 17 5 . Message Errors 6 | . 2 3 1 . Matter Fused 6 | . . 4 2 . Heat Flow Errors 2 | . . 2 . . Energy Discharges 4 | . . 3 1 . Data Loss (minor) 5 | . 1 3 1 . Data Loss (major) 2 | . . 2 . . Overload Shots . | . . . . . Overflow Damage . | . . . . . Projectiles . | . . . . . Explosions . | . . . . . Melee . | . . . . . Knockbacks . | . . . . . Impact . | . . . . . Kinetic . | . . . . . Secondary . | . . . . . Self-Inflicted Damage . | . . . . . Shots . | . . . . . Rammed . | . . . . . Targets Rammed . | . . . . . Kicked . | . . . . . Crushed . | . . . . . Highest Temperature 287 | . 12 287 . . Average Temperature 90 | . 6 121 . . Received Heat Transfer 219 | . 126 93 . . Siege Activations . | . . . . . Martial Activations . | . . . . . Shielding Activations . | . . . . . Robots Disrupted . | . . . . . Combat Hostiles . | . . . . . Robots Corrupted . | . . . . . Combat Hostiles . | . . . . . Parts Fried 2 | . 2 . . . Impact Corruptions . | . . . . . Robots Melted . | . . . . . Combat Hostiles . | . . . . . Parts Melted 1 | . 1 . . . Heat Transferred . | . . . . . Parts Sabotaged . | . . . . . Parts Stolen . | . . . . . Parts Stripped . | . . . . . Power Chain Reactions . | . . . . . Alert | -11 -10 -10 -10 -9 ------- Run | Yrd Mat Min Exi Min Maximum Alert Level . | . . . . . Low Security (%) 100 | 100 100 100 . 100 Level 1 . | . . . . . Level 2 . | . . . . . Level 3 . | . . . . . Level 4 . | . . . . . Level 5 . | . . . . . High Security . | . . . . . Max Security . | . . . . . Peak Influence 172 | . 85 172 . . Initial 25 | . . 25 . . Average 46 | . 28 65 . . Influence Increases 828 | . 418 410 . . Destroy 0b10 Robot/C 600 | . 260 340 . . Destroy 0b10 Robot/NC 25 | . 25 . . . Destroy Leader 116 | . 56 60 . . Allied During Kill 10 | . . 10 . . Successful Hack 15 | . 15 . . . Disable Machine 60 | . 60 . . . Destroy Structure 2 | . 2 . . . Influence Decreases 828 | . 351 477 . . Entered New Map 42 | . . 42 . . Time Decay 692 | . 307 385 . . Lost Part 30 | . . 30 . . Lost Ally 20 | . . 20 . . Purge Threat 44 | . 44 . . . Squads Dispatched 1 | . . 1 . . Investigation . | . . . . . Extermination . | . . . . . Reinforcement . | . . . . . Assault 1 | . . 1 . . Garrison . | . . . . . Intercept . | . . . . . Searches Triggered . | . . . . . Construction Impeded . | . . . . . Haulers Reinforced . | . . . . . Active Scanning Responses . | . . . . . Cargo Convoy Interrupts . | . . . . . Stealth | -11 -10 -10 -10 -9 --------- Run | Yrd Mat Min Exi Min Distress Signals . | . . . . . Communications Jammed . | . . . . . Distress Signals . | . . . . . Times Spotted 36 | . 18 18 . . Peak Tracking Total 4 | . 4 4 . 2 Tactical Retreats 1 | . 1 . . . Traps | -11 -10 -10 -10 -9 ------- Run | Yrd Mat Min Exi Min Traps Triggered 2 | . 2 . . . Indirectly . | . . . . . Trap Hack Attempts . | . . . . . Triggered . | . . . . . Disarmed . | . . . . . Reprogrammed . | . . . . . Reused . | . . . . . Traps Extracted . | . . . . . Installed . | . . . . . Triggered . | . . . . . Machines | -11 -10 -10 -10 -9 ---------- Run | Yrd Mat Min Exi Min Machines Disabled 4 | . 4 . . . Max in Single Turn 2 | . 2 . . . Machines Repaired . | . . . . . Machines Dismantled . | . . . . . Machines Sabotaged . | . . . . . Overloaded Fab Kills . | . . . . . Hacking | -11 -10 -10 -10 -9 --------- Run | Yrd Mat Min Exi Min Machines Accessed 13 | . 7 1 5 . Terminals 8 | . 7 1 . . Fabricators . | . . . . . Repair Stations . | . . . . . Recycling Units . | . . . . . Scanalyzers . | . . . . . Garrison Access . | . . . . . Total Hacks 70 | . 18 2 50 . Successful 58 | . 7 1 50 . Failed 12 | . 11 1 . . Catastrophic 1 | . 1 . . . Database Lockouts . | . . . . . Manual 7 | . 6 . 1 . Terminals 20 | . 18 2 . . Fabricators . | . . . . . Repair Stations . | . . . . . Recycling Units . | . . . . . Scanalyzers . | . . . . . Garrison Access . | . . . . . Terminal Hacks 58 | . 7 1 50 . Record 49 | . . . 49 . Robot Analysis 2 | . 2 . . . Branch Access Points 1 | . 1 . . . Unreport Threat 1 | . 1 . . . Locate Traps 2 | . 2 . . . Dispatch Records 1 | . . 1 . . Zone Layout 1 | . 1 . . . Proto ID Catalog 1 | . . . 1 . Fabricator Hacks . | . . . . . Repair Station Hacks . | . . . . . Recycling Unit Hacks . | . . . . . Scanalyzer . | . . . . . Garrison Access Hacks . | . . . . . Unauthorized Hacks . | . . . . . Terminals . | . . . . . Fabricators . | . . . . . Repair Stations . | . . . . . Recycling Units . | . . . . . Scanalyzers . | . . . . . Garrison Access . | . . . . . Data Cores Recovered . | . . . . . Used . | . . . . . Hacking Detections 8 | . 7 1 . . Full Trace Events . | . . . . . Feedback Events . | . . . . . Feedback Blocked . | . . . . . Robot Schematics Acquired . | . . . . . Robots Built . | . . . . . Authchips . | . . . . . Time . | . . . . . Total Robot Build Rating . | . . . . . Part Schematics Acquired . | . . . . . Parts Built . | . . . . . Authchips . | . . . . . Time . | . . . . . Total Part Build Rating . | . . . . . Part Studies Acquired . | . . . . . Parts Repaired . | . . . . . Time . | . . . . . Parts Recycled . | . . . . . Recycled Matter . | . . . . . Retrieved Matter . | . . . . . Retrieved Components . | . . . . . Parts Scanalyzed . | . . . . . Part Schematics Acquired . | . . . . . Parts Damaged . | . . . . . Bothacking | -11 -10 -10 -10 -9 ------------ Run | Yrd Mat Min Exi Min Used RIF Installer . | . . . . . Robots Hacked . | . . . . . Non-combat . | . . . . . Combat . | . . . . . Robot Hacks Applied . | . . . . . Relay Couplers Released . | . . . . . Fabnet Peak Effective % . | . . . . . Robots Rewired . | . . . . . Allies Hacked . | . . . . . Hacks Repelled . | . . . . . Allies | -11 -10 -10 -10 -9 -------- Run | Yrd Mat Min Exi Min Total Allies 2 | . . 2 . . Largest Group 1 | . . 1 . . Highest-Rated Group 31 | . . 31 . . Highest-Rated Ally 31 | . . 31 . . Total Orders . | . . . . . Ally Attacks 15 | . . 15 . . Total Damage 231 | . . 231 . . Kills 2 | . . 2 . . Allies Corrupted . | . . . . . Allies Melted . | . . . . . Intel | -11 -10 -10 -10 -9 ------- Run | Yrd Mat Min Exi Min Active Infowar (turns) . | . . . . . Robot Analysis Total 2 | . 2 . . . Derelict Logs Recovered 2 | . . 2 . . Drone Launches . | . . . . . Drone Recoveries . | . . . . . Exploration | -11 -10 -10 -10 -9 ------------- Run | Yrd Mat Min Exi Min Turns Passed 2545 | 28 1020 1033 463 1 Spaces Moved 1628 | 34 558 657 379 . Core 83 | 34 49 . . . Treads 714 | . 509 205 . . Legs 831 | . . 452 379 . Wheels . | . . . . . Hover . | . . . . . Flight . | . . . . . Fastest Speed 50 | 50 50 120 120 . Average Speed 134 | 50 152 132 120 . Slowest Speed 300 | 50 300 160 120 . Overloaded Moves . | . . . . . Propulsion Burnouts . | . . . . . Robots Hopped . | . . . . . Potential Cave-ins . | . . . . . Cave-ins Triggered . | . . . . . Exploration Rate (%) 53 | 4 81 98 79 3 Regions Visited 4 Branch Regions 3 Pre-discovered Areas 3 | . . 2 1 . Known Exits Taken 1 | . 1 . . . Unknown Exits Taken 3 | 1 . 1 1 . Scrap Searched 1 | . . 1 . . Spaces Dug . | . . . . . Terrain Destroyed . | . . . . . Melee . | . . . . . Projectile . | . . . . . AOE . | . . . . . Terrain Rammed . | . . . . . Walls Destroyed . | . . . . . Machines Disabled . | . . . . . Actions | -11 -10 -10 -10 -9 --------- Run | Yrd Mat Min Exi Min Total 1844 | 43 649 763 388 1 Wait 76 | . 11 65 . . Move 1624 | 33 557 656 378 . Hop . | . . . . . Pick Up 27 | 7 14 5 1 . Fast Attach 7 | 1 5 1 . . Attach 11 | 2 6 3 . . Detach . | . . . . . Swap 8 | . 3 1 4 . Drop 16 | . 8 3 5 . Fire 75 | . 45 29 . 1 Melee . | . . . . . Ram . | . . . . . Kick . | . . . . . Crush . | . . . . . Escape Stasis . | . . . . . Rewire . | . . . . . Trap . | . . . . . Miscellaneous . | . . . . . Route ------- -11/Scrapyard -10/Materials (discovered 5 exits: [*Mat x3] / *Min x2) -10/Mines (discovered 3 exits: [*Mat x2] / *Exi) -10/Exiles (discovered 2 exits: [*Min x2]) -9/Mines History --------- Turn | Location | Event 17 | -11/Scrapyard | Discovered new exit (range 15) 29 | -11/Scrapyard | Entered Materials 123 | -10/Materials | Identified exit to Mines 274 | -10/Materials | Discovered new exit (range 12) 304 | -10/Materials | Build established: Mutant 459 | -10/Materials | Discovered new exit (range 16) 703 | -10/Materials | Discovered new exit (range 16) 729 | -10/Materials | Derelicts attacked the area 1049 | -10/Materials | Entered Mines 1059 | -10/Mines | Learned location of Zion (-7) 1211 | -10/Mines | Met a Derelict testing a Signal Generator 1222 | -10/Mines | Found Signal Generator 1295 | -10/Mines | Core integrity fell below 50% 1460 | -10/Mines | Core integrity fell below 20% 1492 | -10/Mines | Received a Mining Laser from a helpful Derelict 1537 | -10/Mines | Discovered new exit (range 8) 1618 | -10/Mines | Discovered new exit (range 14) 1641 | -10/Mines | Deemed a non-threat by the Exiles lab entrance 1641 | -10/Mines | Discovered new exit (range 5) 2082 | -10/Mines | Entered Exiles 2100 | -10/Exiles | Discovered new exit (range 15) 2122 | -10/Exiles | Met 8R-AWN 2139 | -10/Exiles | Met EX-HEX 2172 | -10/Exiles | Met EX-BIN 2192 | -10/Exiles | Aligned with FarCom system 2193 | -10/Exiles | Given EX-Vault access code 2242 | -10/Exiles | Opened EX-Vault 2258 | -10/Exiles | Found Flying Fortress v7 2281 | -10/Exiles | Warned to stay clear of 0b10 Research branches 2313 | -10/Exiles | Met EX-DEC 2401 | -10/Exiles | Visited The Gauntlet 2529 | -10/Exiles | Discovered new exit (range 14) 2545 | -10/Exiles | Left Exiles lab with Flying Fortress v7 2545 | -10/Exiles | Entered Mines 2546 | -9/Mines | Destroyed by B-36 Bruiser with Hammer Last Messages --------------- I don't think we can trust Data Miner anymore. For a while now the data we've been getting from that quarter seems anything but impartial. >>Record "MSG004795-01" Could someone repair the Mines activity scanner? It seems to fail sometimes, and when it does we can't send 8R-AWN out on exploratory runs. >>Record "MSG004795-02" I just repaired it not long ago, I think someone on the outside is tampering with our system. --AM-PHS >>Record "MSG004964-01" Who left my Assembled plushie in the Analyzer again?! I'm not erasing this message until I get an answer. --BIN 02351_ System corrupted: Matter fused (-6). 02486_ Dropped Sml. Storage Unit. 02491_ System corrupted: Component data lost. 02524_ U&GH7HQJ5D6HGL6OOWRP GZX9BNJ& 02529_ EXIT=FOUND LOCATION=UNKNOWN GOAL=ESCAPE 02545_ Receiving FarCom transmissions... Map ----- +----------------------------------------------------+ | ???????????????????????????????????? | | ???????????????????????????????????? | | ???????????????????????????????????? | | ???????????????????????????????????? | | ???????????????????????????????????? | | ???????????????????????????????????? | | ???????????????????????????????????? | | ???????????????????????????????????? | | ???????????????????????????????????? | | ???????????????????????????????????? | | ?????????????????????????#?????????? | | ????????????????????????? #????????? | | ????????????????????????? ##??????? | | ????????????????????????? ???????? | | ????????????????????????? ???????? | | ????????????????????????? ???????? | | ????????????????????????? ???????? | | ????????????????????????# ???????? | | ????????????????????????# #???????? | | ????????????????????????# #???????? | | ????????????????????????# #???????? | | ??????????????????????### ###?????? | | ??????????????????????# #?????? | | ????????????????####### #?????? | | ????????????????? b #?????? | | ??????????????????????# @ #?????? | | ??????????????????????# g #?????? | | ??????????????????????########?????? | | ???????????????????????????????????? | | ???????????????????????????????????? | | | | | | | | | | | | | | | | | | | | | | | | | | | | | | | | | | | | | | | | | +----------------------------------------------------+ Best States ------------- Heat Dissipation 25 Energy Generation 12 Energy Capacity 265 Matter Stores 300 Matter Capacity 300 Sight Range 16 Terrain Scan Density 10 Utility Shielding 33 Evasion (%) 55 Recoil Reduction 2 Item Schematics ----------------- None Robot Schematics ------------------ None Fabricated ------------ Nothing Repaired ---------- Nothing Studied --------- None Alien Tech Used ----------------- None Achievements -------------- None Challenges ------------ None Game ------ Seed ShrapnelMicroClaw Manual? 0 Play Time 00:13:36 Cumulative 220.9 hours Start 2026.09.13 @ 14:14:15 End 2026.09.13 @ 14:28:12 Sessions 1 Manual Loads 0 Difficulty Rogue Special Mode None Game No. 352 Rogue 349 Adventurer 3 Explorer 0 Win Type - Total 1 Types 1/0/0/0/0/0/0/0/0/0 Lore% 67 Gallery% 57 Achievement% 33 Wizard Run 0 Options --------- Layout 0 ASCII 0 Keyboard 0 Movement Mouse Keybinds 0 Fullscreen 2 Font 18/SmallcapsGlow Map View 76x50 Zoom Use 0% Tactical HUD 1 Map Filters NONE Filters NONE Steam 1 RUN: 74c640e8-fc08-4a62-833a-5ba28464b5b3